bitfinex/quotes_BTCUSD_20240712
["timestamp","ask_amount","ask_price","bid_price","bid_amount"]
[1720813407323,0.17354499,57956.0,57953.0,0.01313776]
[1720813407531,0.17354499,57956.0,57952.0,0.01314545]
[1720813407738,0.01806985,57955.0,57954.0,0.01213007]
[1720813407948,0.02006984,57955.0,57953.0,0.01093346]
[1720813408191,0.02006984,57955.0,57954.0,0.01092578]
[1720813408192,0.88280684,57955.0,57954.0,0.01092578]
[1720813408408,0.88512042,57955.0,57954.0,0.01092578]
[1720813408622,0.172551,57954.0,57952.0,0.002]
[1720813408836,0.00199999,57953.0,57950.0,0.172562]
[1720813409044,0.00189999,57953.0,57950.0,0.172562]
[1720813409258,0.00189999,57953.0,57952.0,0.982782]
[1720813409464,0.01806985,57955.0,57954.0,0.517651]
[1720813409669,0.01806985,57955.0,57954.0,0.862752]
[1720813409883,0.01806985,57955.0,57954.0,0.517651]
[1720813410105,0.01806985,57955.0,57944.0,0.0831]
[1720813410106,0.172551,57954.0,57948.0,0.345134]
[1720813410327,0.172551,57954.0,57952.0,0.006]
[1720813410328,0.173551,57954.0,57952.0,0.006]
[1720813410786,0.172553,57953.0,57952.0,0.006]
[1720813411007,0.51955999,57953.0,57952.0,0.011]
[1720813411456,0.51955999,57953.0,57952.0,0.006]
[1720813411457,1.35307399,57953.0,57952.0,0.006]
[1720813411681,1.35307399,57953.0,57952.0,0.014]
[1720813411682,1.471174,57953.0,57952.0,0.014]
[1720813411902,1.471174,57953.0,57952.0,0.006]
[1720813412141,1.351174,57953.0,57952.0,0.006]
[1720813412363,1.352174,57953.0,57952.0,0.015]
[1720813412797,1.472174,57953.0,57952.0,0.015]
[1720813413008,1.472174,57953.0,57952.0,0.009]
[1720813413423,1.472074,57953.0,57952.0,0.009]
[1720813413675,1.472074,57953.0,57940.0,0.17259]
[1720813413676,0.172582,57944.0,57940.0,0.17259]
[1720813414098,0.345124,57951.0,57939.0,0.345189]
[1720813414099,0.172575,57946.0,57942.0,0.172585]
[1720813414305,0.172572,57947.0,57943.0,0.172582]
[1720813415362,0.172572,57947.0,57944.0,0.01100267]
[1720813415363,0.172574,57946.0,57944.0,0.01100267]
[1720813415576,0.172577,57945.0,57944.0,0.01100267]
[1720813415793,0.172577,57945.0,57943.0,0.01]
[1720813416014,0.52205455,57944.0,57943.0,0.01]
[1720813416652,0.52195455,57944.0,57943.0,0.01]
[1720813417070,0.52195455,57944.0,57939.0,0.172594]
[1720813417071,0.172585,57943.0,57939.0,0.172594]
[1720813418473,0.172585,57943.0,57939.0,0.186594]
[1720813418935,0.172481,57944.0,57940.0,0.172591]
[1720813419149,0.001,57943.0,57940.0,0.172591]
[1720813419849,0.172481,57944.0,57941.0,0.01102575]
[1720813420310,0.173481,57944.0,57941.0,0.01102575]
[1720813420732,0.17689871,57943.0,57941.0,0.01102575]
[1720813421199,0.172581,57944.0,57940.0,0.172591]
[1720813421413,0.001,57943.0,57942.0,0.01101805]
[1720813421646,0.001,57943.0,57941.0,0.01102575]
[1720813421860,0.001,57943.0,57942.0,0.01101805]
[1720813422068,0.0029,57943.0,57942.0,0.01101805]
[1720813422281,0.0029,57943.0,57941.0,0.014]
[1720813422488,0.0019,57943.0,57942.0,0.01101805]
[1720813422928,0.0029,57943.0,57942.0,0.01101805]
[1720813423125,0.0028,57943.0,57942.0,0.87394805]
[1720813423335,0.0028,57943.0,57942.0,0.52877605]
[1720813423336,0.0018,57943.0,57942.0,0.52877605]
[1720813424006,0.172569,57948.0,57943.0,0.172581]
[1720813424215,0.172569,57948.0,57943.0,0.171581]
[1720813424426,0.00189999,57947.0,57944.0,0.01100267]
[1720813424611,0.17447099,57947.0,57944.0,0.01100267]
[1720813424849,0.17447099,57947.0,57944.0,0.18358267]
[1720813425065,0.00189999,57947.0,57944.0,0.18358267]
[1720813425278,0.172572,57947.0,57944.0,0.01000267]
[1720813425493,0.00189999,57946.0,57944.0,0.01000267]
[1720813425926,0.00189999,57946.0,57944.0,0.18258267]
[1720813426171,0.00189999,57947.0,57944.0,0.01000267]
[1720813426383,0.00189999,57947.0,57944.0,0.18258167]
[1720813426812,0.17447099,57947.0,57944.0,0.01000267]
[1720813427000,0.17447099,57947.0,57944.0,0.03000267]
[1720813427001,0.001,57946.0,57944.0,0.03000267]
[1720813427212,0.00289999,57946.0,57944.0,0.03000267]
[1720813427464,0.00179999,57946.0,57944.0,0.02000267]
[1720813427678,0.00179999,57946.0,57944.0,0.02900267]
[1720813427893,0.00179999,57946.0,57944.0,0.20158167]
[1720813428106,0.00179999,57946.0,57944.0,0.19158167]
[1720813428316,0.01461462,57945.0,57944.0,0.01900267]
[1720813428532,0.01461462,57945.0,57944.0,0.03100267]
[1720813429005,0.01461462,57945.0,57944.0,0.02200267]
[1720813429413,0.01461462,57945.0,57944.0,0.03200267]
[1720813429834,0.01461462,57945.0,57944.0,0.01000267]
[1720813430051,0.01461462,57945.0,57944.0,0.02300267]
[1720813430243,0.01461462,57945.0,57944.0,0.03400267]
[1720813430461,0.00179999,57946.0,57944.0,0.03400267]
[1720813430661,0.01468394,57945.0,57944.0,0.03410267]
[1720813430849,0.01468396,57945.0,57944.0,0.03410267]
[1720813431420,0.01648395,57945.0,57944.0,0.02110267]
[1720813431617,0.01468396,57945.0,57944.0,0.02110267]
[1720813431833,0.01468396,57945.0,57944.0,0.03310267]
[1720813432035,0.01468396,57945.0,57944.0,0.02210267]
[1720813432240,0.01648395,57945.0,57944.0,0.02210267]
[1720813432427,0.01648395,57945.0,57944.0,0.03210267]
[1720813432862,0.01648395,57945.0,57944.0,0.02210267]
[1720813432988,0.01648395,57945.0,57944.0,0.01010267]
[1720813432989,0.01468396,57945.0,57944.0,0.01010267]
[1720813433194,0.01468396,57945.0,57944.0,0.20668267]
[1720813433399,0.01468396,57945.0,57944.0,0.55184267]
[1720813433603,0.01468396,57945.0,57944.0,1.30686267]
[1720813433990,0.009868,57946.0,57945.0,0.862885]
[1720813434176,0.02438757,57946.0,57945.0,0.862885]
[1720813434374,0.02438757,57946.0,57945.0,0.00914012]
[1720813434375,0.18709457,57946.0,57945.0,0.00914012]
[1720813434824,0.02171959,57946.0,57945.0,0.00914012]
[1720813435028,0.0174051,57946.0,57945.0,0.172577]
[1720813435231,0.0174051,57946.0,57945.0,0.00914012]
[1720813435232,0.01454157,57946.0,57945.0,0.00914012]
[1720813435456,0.01885595,57947.0,57945.0,0.01914012]
[1720813435670,0.10399623,57946.0,57945.0,0.01914012]
[1720813435881,0.62458176,57946.0,57945.0,0.01914012]
[1720813436083,0.62171823,57946.0,57945.0,0.01914012]
[1720813436456,0.62171823,57946.0,57945.0,0.02114012]
[1720813436695,0.18711557,57946.0,57945.0,0.03014012]
[1720813436915,0.18711557,57946.0,57945.0,0.021]
[1720813437117,0.18711557,57946.0,57945.0,0.03014012]
[1720813437321,0.18753538,57946.0,57945.0,0.03014012]
[1720813437940,0.01579138,57946.0,57945.0,0.03014012]
[1720813438193,0.01865491,57946.0,57945.0,0.02114012]
[1720813438434,0.01865491,57946.0,57945.0,0.19371712]
[1720813438670,0.01579138,57946.0,57945.0,0.20371712]
[1720813439106,0.01579138,57946.0,57945.0,0.03114012]
[1720813440073,0.01579138,57946.0,57945.0,0.20371712]
[1720813440328,0.01579138,57946.0,57945.0,0.89402512]
[1720813440572,0.01579138,57946.0,57945.0,0.03114012]
[1720813441301,0.01585493,57946.0,57945.0,0.03114012]
[1720813441825,0.01585493,57946.0,57945.0,0.20371712]
[1720813442791,0.01585493,57946.0,57945.0,0.03114012]
[1720813443272,0.01556913,57946.0,57945.0,0.03114012]
[1720813443534,0.01556913,57946.0,57945.0,0.20371712]
[1720813444287,0.01556913,57946.0,57945.0,0.03114012]
[1720813444570,0.01559244,57946.0,57945.0,0.20371712]
[1720813445807,0.01559244,57946.0,57945.0,0.54887112]
[1720813446528,0.00083,57946.0,57945.0,0.54887112]
[1720813446768,0.01548524,57946.0,57945.0,0.54887112]
[1720813449689,0.00083,57946.0,57945.0,0.54887112]
[1720813449961,0.01567221,57946.0,57945.0,0.54887112]
[1720813450215,0.01567221,57946.0,57945.0,0.03114012]
[1720813450216,0.6637649,57946.0,57945.0,0.03114012]
[1720813450513,0.6637649,57946.0,57945.0,0.0343057]
[1720813450514,1.07817515,57946.0,57945.0,0.0343057]
[1720813450773,1.07817515,57946.0,57945.0,0.022]
[1720813451008,1.42332315,57946.0,57945.0,0.012]
[1720813451256,0.982885,57945.0,57944.0,0.0001]
[1720813451493,1.49940125,57945.0,57944.0,0.0001]
[1720813451723,1.60108846,57945.0,57944.0,0.0001]
[1720813451940,1.49940125,57945.0,57944.0,0.0001]
[1720813452387,0.58699325,57945.0,57944.0,0.0001]
[1720813452607,0.63782808,57945.0,57944.0,0.0001]
[1720813452824,0.63782808,57945.0,57944.0,0.17268]
[1720813452825,0.06926225,57945.0,57944.0,0.17268]
[1720813453058,0.07977079,57946.0,57945.0,0.001]
[1720813453308,0.10602908,57946.0,57945.0,0.983885]
[1720813453522,0.03409608,57946.0,57945.0,1.45414494]
[1720813453750,0.03409608,57946.0,57945.0,2.16399894]
[1720813453751,0.00083,57946.0,57945.0,2.16399894]
[1720813453983,0.00083,57946.0,57945.0,2.19860894]
[1720813454211,0.00083,57946.0,57945.0,2.54376294]
[1720813454453,0.00183,57946.0,57945.0,2.55176294]
[1720813454684,0.00183,57946.0,57945.0,2.20660894]
[1720813454902,0.00183,57946.0,57945.0,2.00660894]
[1720813455118,0.00083,57946.0,57945.0,1.99860894]
[1720813455328,0.00083,57946.0,57945.0,1.48204471]
[1720813455978,0.03253411,57946.0,57945.0,1.35904471]
[1720813456406,0.00083,57946.0,57945.0,1.35904471]
[1720813456615,0.00083,57946.0,57945.0,1.37304471]
[1720813456616,0.03269468,57946.0,57945.0,1.37304471]
[1720813456842,0.03369468,57946.0,57945.0,1.37304471]
[1720813457072,0.03369468,57946.0,57945.0,0.09240571]
[1720813457280,0.23960553,57946.0,57945.0,0.04030571]
[1720813457491,0.78713745,57946.0,57945.0,0.04030571]
[1720813457699,0.78713745,57946.0,57945.0,0.028]
[1720813457700,1.00518168,57946.0,57945.0,0.028]
[1720813457911,1.00518168,57946.0,57945.0,0.014]
[1720813458367,1.00518168,57946.0,57945.0,0.028]
[1720813458579,1.00418168,57946.0,57945.0,0.014]
[1720813458996,1.00418168,57946.0,57945.0,0.028]
[1720813460101,0.62138227,57946.0,57945.0,0.014]
[1720813460315,0.172577,57945.0,57944.0,0.0001]
[1720813460527,0.6234248,57945.0,57944.0,0.0001]
[1720813460961,0.72158378,57945.0,57944.0,0.0001]
[1720813461171,0.84583856,57945.0,57944.0,0.0001]
[1720813461381,1.19099256,57945.0,57944.0,0.0001]
[1720813461592,1.52902825,57945.0,57944.0,0.0001]
[1720813461797,1.52902825,57945.0,57944.0,0.0051]
[1720813462047,1.52902825,57945.0,57944.0,0.0001]
[1720813462048,1.68156422,57945.0,57944.0,0.0001]
[1720813462272,1.52902825,57945.0,57944.0,0.0001]
[1720813462867,1.40902825,57945.0,57944.0,0.0001]
[1720813463074,1.46627084,57945.0,57944.0,0.0001]
[1720813463500,0.10571452,57945.0,57944.0,0.0051]
[1720813463715,0.10571452,57945.0,57944.0,0.063]
[1720813463716,0.10857805,57945.0,57944.0,0.063]
[1720813463919,0.75341275,57945.0,57944.0,0.064]
[1720813464145,0.62630905,57945.0,57944.0,0.064]
[1720813464353,0.62344552,57945.0,57944.0,0.064]
[1720813464827,0.62344552,57945.0,57944.0,0.07531725]
[1720813465035,0.62344552,57945.0,57944.0,0.08131725]
[1720813465243,0.27829152,57945.0,57944.0,0.08131725]
[1720813465894,0.27829152,57945.0,57944.0,0.073]
[1720813466129,0.23282083,57945.0,57944.0,0.073]
[1720813466335,0.23282083,57945.0,57944.0,0.23558]
[1720813466541,0.10518932,57945.0,57944.0,0.23558]
[1720813466759,0.10518932,57945.0,57944.0,0.25889725]
[1720813466964,0.12793371,57946.0,57944.0,0.25889725]
[1720813467204,0.1047817,57945.0,57944.0,0.25889725]
[1720813467855,0.1047817,57945.0,57944.0,0.60405725]
[1720813468025,0.1047817,57945.0,57944.0,0.94321725]
[1720813468246,0.10931362,57945.0,57944.0,0.94321725]
[1720813468421,0.10931362,57945.0,57944.0,1.55690567]
[1720813468422,0.03304692,57945.0,57944.0,1.55690567]
[1720813468619,0.03304692,57945.0,57944.0,1.55190567]
[1720813468831,0.03304692,57945.0,57944.0,1.40837725]
[1720813469035,0.03304692,57945.0,57944.0,1.29237725]
[1720813469213,0.03304692,57945.0,57944.0,0.60205725]
[1720813469431,0.00083,57946.0,57944.0,0.60205725]
[1720813469432,0.00083,57946.0,57945.0,0.517731]
[1720813469646,0.07711314,57946.0,57945.0,0.517731]
[1720813469849,0.10993765,57946.0,57945.0,0.53003671]
[1720813470361,0.10505921,57946.0,57945.0,0.53003671]
[1720813470701,0.10505921,57946.0,57945.0,0.88919071]
[1720813470702,0.08451748,57946.0,57945.0,0.88919071]
[1720813470874,0.08451748,57946.0,57945.0,1.50386158]
[1720813470875,0.03353929,57946.0,57945.0,1.50386158]
[1720813471097,0.03353929,57946.0,57945.0,1.99251558]
[1720813471321,0.03353929,57946.0,57945.0,2.31551558]
[1720813471519,0.03353929,57946.0,57945.0,2.67373781]
[1720813471520,0.00083,57946.0,57945.0,2.67373781]
[1720813471734,0.00083,57946.0,57945.0,2.65973781]
[1720813471948,0.00083,57946.0,57945.0,2.65773781]
[1720813472168,0.00083,57946.0,57945.0,2.67073781]
[1720813472364,0.00083,57946.0,57945.0,2.65873781]
[1720813472784,0.00083,57946.0,57945.0,2.64573781]
[1720813472785,0.0326475,57946.0,57945.0,2.64573781]
[1720813472989,0.00083,57946.0,57945.0,2.64573781]
[1720813473191,0.00083,57946.0,57945.0,2.65973781]
[1720813473400,0.00083,57946.0,57945.0,2.45973781]
[1720813473808,0.00083,57946.0,57945.0,1.87906694]
[1720813474010,0.03253872,57946.0,57945.0,1.87906694]
[1720813474778,0.03253872,57946.0,57945.0,1.53484471]
[1720813474911,0.03277554,57946.0,57945.0,1.53484471]
[1720813475364,0.00083,57946.0,57945.0,1.53484471]
[1720813475563,0.00083,57946.0,57945.0,1.51184471]
[1720813475763,0.03277033,57946.0,57945.0,1.85699871]
[1720813476238,0.00083,57946.0,57945.0,1.51184471]
[1720813476708,0.03276039,57946.0,57945.0,1.51184471]
[1720813476940,0.03297187,57946.0,57945.0,1.51184471]
[1720813479415,0.03300122,57946.0,57945.0,1.04669071]
[1720813479646,0.03300122,57946.0,57945.0,0.70153671]
[1720813479647,0.03299812,57946.0,57945.0,0.70153671]
[1720813480064,0.03299812,57946.0,57945.0,1.04669071]
[1720813481526,0.03299812,57946.0,57945.0,0.21288271]
[1720813481727,0.03299812,57946.0,57945.0,0.55803671]
[1720813481927,0.03299812,57946.0,57945.0,0.90319071]
[1720813482127,0.03299812,57946.0,57945.0,0.55803671]
[1720813482583,0.03299812,57946.0,57945.0,0.55298046]
[1720813485396,0.03299812,57946.0,57945.0,0.20782646]
[1720813485577,0.03299812,57946.0,57945.0,0.04030571]
[1720813485802,0.03586165,57946.0,57945.0,0.04030571]
[1720813486438,0.00369353,57946.0,57945.0,0.04030571]
[1720813486645,0.56411808,57946.0,57945.0,0.04030571]
[1720813487105,1.11425158,57946.0,57945.0,0.04030571]
[1720813487319,0.67234089,57946.0,57945.0,0.04030571]
[1720813487535,1.02035242,57946.0,57945.0,0.014]
[1720813487755,1.36550042,57946.0,57945.0,0.014]
[1720813487969,1.36550042,57946.0,57945.0,0.028]
[1720813487970,1.01748889,57946.0,57945.0,0.028]
[1720813488186,1.01748889,57946.0,57945.0,0.014]
[1720813488187,1.02035242,57946.0,57945.0,0.014]
[1720813488399,1.02035242,57946.0,57944.0,0.001013]
[1720813488400,0.862885,57945.0,57944.0,0.001013]
[1720813488611,1.09611566,57945.0,57944.0,0.001013]
[1720813488849,0.96625829,57945.0,57944.0,0.001013]
[1720813489514,1.09318892,57945.0,57944.0,0.001013]
[1720813489729,1.0931826,57945.0,57944.0,0.001013]
[1720813489942,0.7480286,57945.0,57944.0,0.001013]
[1720813490215,0.62103138,57945.0,57944.0,0.001013]
[1720813490427,0.10616391,57945.0,57944.0,0.001013]
[1720813490617,0.18236208,57945.0,57944.0,0.01333025]
[1720813490821,0.03228108,57945.0,57944.0,0.01333025]
[1720813491045,0.03514461,57945.0,57944.0,0.01333025]
[1720813491248,0.03514461,57945.0,57944.0,0.61077025]
[1720813491457,0.03228108,57945.0,57944.0,0.95693025]
[1720813491659,0.03228108,57945.0,57944.0,0.95593025]
[1720813492165,0.03228108,57945.0,57944.0,0.96193025]
[1720813492375,0.03228108,57945.0,57944.0,0.95593025]
[1720813492586,0.03228108,57945.0,57944.0,1.57037008]
[1720813492821,0.03228108,57945.0,57944.0,1.57637008]
[1720813493028,0.01807279,57946.0,57945.0,1.673439]
[1720813493240,0.01807279,57946.0,57945.0,2.09925304]
[1720813493452,0.05080402,57961.0,57959.0,0.172535]
[1720813493664,0.03204198,57960.0,57959.0,0.172535]
[1720813493887,0.05080402,57961.0,57959.0,0.172535]
[1720813494096,0.06887271,57961.0,57960.0,0.172532]
[1720813494307,0.12139407,57961.0,57960.0,0.18466471]
[1720813494519,0.1722017,57961.0,57960.0,0.52972971]
[1720813494942,0.1722017,57961.0,57960.0,0.87479471]
[1720813494943,0.05035878,57961.0,57960.0,0.87479471]
[1720813495153,0.2221,57975.0,57961.0,0.172529]
[1720813495154,0.05080593,57962.0,57961.0,0.172529]
[1720813495366,0.15379574,57962.0,57961.0,0.862647]
[1720813495548,0.07620889,57963.0,57961.0,0.862647]
[1720813495549,0.05080593,57963.0,57962.0,0.517579]
[1720813495788,0.05080593,57963.0,57962.0,0.862632]
[1720813496001,0.15379439,57963.0,57962.0,0.87474165]
[1720813496206,0.10298846,57963.0,57962.0,0.87474165]
[1720813496414,0.10244585,57963.0,57962.0,0.18463565]
[1720813496635,0.17865932,57963.0,57962.0,0.18463565]
[1720813496847,0.10244585,57963.0,57962.0,0.18463565]
[1720813497051,0.20405899,57963.0,57962.0,0.18463565]
[1720813497466,0.20405899,57963.0,57962.0,0.517579]
[1720813497674,0.10244585,57963.0,57962.0,0.52968865]
[1720813497906,0.10244585,57963.0,57962.0,0.53868865]
[1720813498321,0.10244585,57963.0,57962.0,0.54968865]
[1720813498525,0.10244585,57963.0,57962.0,0.03210965]
[1720813498747,0.20405899,57963.0,57962.0,0.20463565]
[1720813498968,0.72162899,57963.0,57962.0,0.03210965]
[1720813499183,0.99888805,57963.0,57962.0,0.03210965]
[1720813499384,1.18488805,57963.0,57962.0,0.02]
[1720813499595,1.6495892,57963.0,57962.0,0.02]
[1720813499785,1.75163534,57963.0,57962.0,0.02]
[1720813500191,1.71781014,57963.0,57962.0,0.02]
[1720813500431,1.15066314,57963.0,57962.0,0.02]
[1720813500634,1.08466314,57963.0,57962.0,0.02]
[1720813501260,0.96466314,57963.0,57962.0,0.011]
[1720813501469,0.96466314,57963.0,57956.0,0.0617]
[1720813501470,0.345064,57961.0,57956.0,0.0617]
[1720813501676,0.07624401,57957.0,57956.0,0.0617]
[1720813501896,0.07624401,57957.0,57956.0,0.924422]
[1720813502134,0.10167926,57960.0,57959.0,0.34507]
[1720813502371,0.05371121,57963.0,57959.0,0.12]
[1720813502601,0.07626963,57965.0,57954.0,0.08511435]
[1720813502602,0.0307667,57962.0,57961.0,0.517588]
[1720813502864,0.11974693,57968.0,57967.0,0.345023]
[1720813502865,0.01806767,57968.0,57967.0,0.345023]
[1720813503089,0.01806767,57968.0,57967.0,1.20758]
[1720813503311,0.01806767,57968.0,57967.0,2.294703]
[1720813503531,0.0015,57973.0,57972.0,1.872473]
[1720813503743,0.0015,57973.0,57972.0,1.812473]
[1720813504389,0.0015,57973.0,57972.0,2.294573]
[1720813504596,0.01806035,57988.0,57985.0,0.1416]
[1720813504807,0.00286353,57993.0,57992.0,0.517312]
[1720813505021,0.05084768,57996.0,57992.0,0.172437]
[1720813505022,0.05084768,57994.0,57992.0,0.172437]
[1720813505259,0.05084768,57994.0,57985.0,0.1416]
[1720813505260,0.02944802,57993.0,57988.0,0.172447]
[1720813505539,0.344887,57990.0,57981.0,0.34494]
[1720813505777,0.02944802,57989.0,57984.0,0.172459]
[1720813505982,0.08511435,57987.0,57976.0,0.0633]
[1720813506189,0.02944802,57986.0,57979.0,0.344946]
[1720813506427,0.02944802,57986.0,57980.0,0.00344932]
[1720813506646,0.34487,57993.0,57977.0,0.17540168]
[1720813506647,0.344889,57990.0,57977.0,0.17540168]
[1720813506896,0.344889,57990.0,57981.0,0.176469]
[1720813506897,0.17245,57988.0,57981.0,0.176469]
[1720813507113,0.02982593,57987.0,57981.0,0.172469]
[1720813507360,0.02982593,57987.0,57985.0,0.172457]
[1720813507590,0.02982593,57986.0,57984.0,0.17246]
[1720813507807,0.02982593,57985.0,57980.0,0.344941]
[1720813508023,0.172446,57989.0,57982.0,0.172465]
[1720813508235,0.02993889,57988.0,57977.0,0.344962]
[1720813508460,0.02982422,57987.0,57979.0,0.01]
[1720813508668,0.344893,57989.0,57980.0,0.172472]
[1720813508669,0.20227922,57986.0,57980.0,0.172472]
[1720813508892,0.172455,57986.0,57985.0,0.007]
[1720813509100,0.20228059,57986.0,57985.0,0.007]
[1720813509340,0.172451,57988.0,57982.0,0.172466]
[1720813509552,0.03000859,57987.0,57979.0,0.172475]
[1720813509763,0.172461,57984.0,57983.0,0.00950524]
[1720813509971,0.172466,57983.0,57978.0,0.172479]
[1720813510405,0.172466,57983.0,57976.0,0.40827]
[1720813510406,0.344935,57982.0,57979.0,0.00953597]
[1720813510636,0.517405,57982.0,57979.0,0.00953597]
[1720813510843,0.172473,57980.0,57979.0,0.007]
[1720813511250,0.172473,57980.0,57976.0,0.235784]
[1720813511664,0.172471,57981.0,57979.0,0.013]
[1720813511885,0.172471,57981.0,57979.0,0.022]
[1720813512134,0.172471,57981.0,57977.0,0.172481]
[1720813512376,0.172471,57981.0,57979.0,0.014]
[1720813512614,0.172473,57980.0,57979.0,0.028]
[1720813512855,0.172473,57980.0,57979.0,0.014]
[1720813513089,0.172473,57980.0,57979.0,0.028]
[1720813513328,0.517412,57981.0,57979.0,0.028]
[1720813513572,0.172459,57985.0,57981.0,0.172469]
[1720813514083,0.172461,57984.0,57981.0,0.172469]
[1720813516658,0.344929,57983.0,57979.0,0.012]
[1720813517153,0.344941,57981.0,57976.0,0.0633]
[1720813517424,0.172474,57980.0,57977.0,0.0489685]
[1720813517901,0.517413,57981.0,57977.0,0.2214495]
[1720813518146,0.12990135,57991.0,57979.0,0.356949]
[1720813518147,0.344908,57987.0,57979.0,0.356949]
[1720813518404,0.08511435,57999.0,57989.0,0.12]
[1720813518405,0.00286353,57999.0,57989.0,0.12]
[1720813518642,0.00286353,57999.0,57991.0,0.12]
[1720813518905,0.00286353,57999.0,57994.0,0.344859]
[1720813519180,2.78475042,58000.0,57995.0,0.344856]
[1720813519436,2.78475042,58000.0,57999.0,0.172416]
[1720813519894,2.78475042,58000.0,57999.0,0.18419638]
[1720813520144,2.78475042,58000.0,57999.0,0.01178038]
[1720813520624,2.78475042,58000.0,57998.0,0.172417]
[1720813520880,2.78475042,58000.0,57999.0,0.01178038]
[1720813521119,2.78475042,58000.0,57999.0,0.172416]
[1720813521360,2.78475042,58000.0,57999.0,0.18419638]
[1720813521606,2.78475042,58000.0,57999.0,0.19519638]
[1720813521607,2.81375173,58000.0,57999.0,0.19519638]
[1720813521861,2.78475042,58000.0,57999.0,0.65422872]
[1720813522375,2.78475042,58000.0,57999.0,0.99906172]
[1720813524078,2.78475042,58000.0,57999.0,1.46389472]
[1720813524312,2.78475042,58000.0,57999.0,1.45289472]
[1720813524556,2.78475042,58000.0,57999.0,1.46389472]
[1720813525040,2.78475042,58000.0,57999.0,1.45289472]
[1720813525282,2.78475042,58000.0,57999.0,1.33489472]
[1720813525550,2.78475042,58000.0,57999.0,0.90186238]
[1720813525813,2.78475042,58000.0,57999.0,0.03978038]
[1720813526054,2.78475042,58000.0,57999.0,0.21219638]
[1720813526278,2.78475042,58000.0,57999.0,0.03978038]
[1720813526490,3.64681742,58000.0,57999.0,0.03978038]
[1720813526736,3.64681742,58000.0,57999.0,0.028]
[1720813526737,4.19191927,58000.0,57999.0,0.028]
[1720813526975,4.02168187,58000.0,57999.0,0.028]
[1720813527700,4.02168187,58000.0,57999.0,0.014]
[1720813527701,4.14168187,58000.0,57999.0,0.014]
[1720813527934,4.14168187,58000.0,57999.0,0.02]
[1720813527935,4.48650887,58000.0,57999.0,0.02]
[1720813528194,4.48650887,58000.0,57999.0,0.006]
[1720813528195,4.48686329,58000.0,57999.0,0.006]
[1720813528499,4.48686329,58000.0,57999.0,0.013]
[1720813528728,0.172451,57988.0,57984.0,0.172461]
[1720813529211,0.344895,57989.0,57985.0,0.01005426]
[1720813529470,0.00286353,57999.0,57985.0,0.01005426]
[1720813529471,1.03473,57986.0,57985.0,0.01005426]
[1720813529723,1.03473,57986.0,57973.0,0.0663]
[1720813529724,0.15000309,57986.0,57973.0,0.0663]
[1720813529966,0.15000309,57986.0,57969.0,0.0769]
[1720813529967,0.1466,57990.0,57969.0,0.249404]
[1720813529968,0.172491,57974.0,57969.0,0.249404]
[1720813530206,0.02945774,57973.0,57969.0,0.249404]
[1720813530501,0.00286353,57972.0,57969.0,0.0769]
[1720813530831,0.00286353,57972.0,57958.0,0.03461]
[1720813530832,0.00286353,57972.0,57958.0,0.0002]
[1720813530833,0.12,57968.0,57958.0,0.0002]
[1720813531044,0.12,57968.0,57958.0,0.51068611]
[1720813531045,0.172525,57963.0,57958.0,0.51068611]
[1720813531289,0.172525,57963.0,57955.0,0.0002]
[1720813531291,0.172544,57956.0,57955.0,0.0002]
[1720813531538,0.89653273,57956.0,57955.0,0.0002]
[1720813531812,0.17256,57951.0,57947.0,0.172571]
[1720813532056,0.00286353,57950.0,57947.0,0.172571]
[1720813532334,0.00286353,57950.0,57944.0,0.001013]
[1720813532565,0.172577,57945.0,57944.0,0.001013]
[1720813532783,0.54702109,57945.0,57944.0,0.001013]
[1720813533004,1.01217509,57945.0,57944.0,0.001013]
[1720813533454,0.89217509,57945.0,57944.0,0.001013]
[1720813533683,0.89217509,57945.0,57944.0,0.005013]
[1720813533684,0.89503862,57945.0,57944.0,0.005013]
[1720813534110,0.862885,57945.0,57944.0,0.001013]
[1720813534389,5.983e-05,57947.0,57944.0,0.001013]
[1720813534695,5.983e-05,57947.0,57945.0,0.172577]
[1720813534696,0.00286353,57946.0,57945.0,0.172577]
[1720813534936,0.00286353,57946.0,57944.0,0.107013]
[1720813534937,0.172577,57945.0,57944.0,0.107013]
[1720813535174,0.00286353,57946.0,57945.0,0.01039779]
[1720813535428,0.00286353,57946.0,57944.0,0.11941848]
[1720813535680,0.00286353,57946.0,57945.0,0.01039779]
[1720813536184,0.00286353,57946.0,57945.0,0.01639779]
[1720813536672,0.517722,57946.0,57945.0,0.01639779]
[1720813536924,5.983e-05,57947.0,57945.0,0.01039779]
[1720813537200,0.00286353,57946.0,57945.0,1.22188687]
[1720813537431,0.35475663,57960.0,57945.0,1.22188687]
[1720813537432,0.172547,57956.0,57948.0,0.345132]
[1720813537675,0.345084,57957.0,57952.0,0.172555]
[1720813537676,0.00286353,57955.0,57952.0,0.172555]
[1720813537911,0.00286353,57955.0,57953.0,0.172552]
[1720813538164,0.00286353,57958.0,57953.0,0.18288827]
[1720813538418,0.00286353,57958.0,57954.0,0.17255]
[1720813538677,0.00286353,57958.0,57955.0,0.172547]
[1720813538910,0.1,57976.0,57955.0,0.172547]
[1720813538911,0.00286353,57965.0,57958.0,0.345076]
[1720813539156,0.0656,57972.0,57962.0,0.345052]
[1720813539157,0.00286353,57966.0,57962.0,0.345052]
[1720813539392,0.00286353,57966.0,57959.0,0.01029014]
[1720813539393,0.172528,57962.0,57959.0,0.01029014]
[1720813539630,0.172528,57962.0,57957.0,0.172541]
[1720813539869,0.172528,57962.0,57960.0,0.01028246]
[1720813540105,0.172528,57962.0,57958.0,0.172538]
[1720813540348,0.172524,57963.0,57961.0,0.01027477]
[1720813540579,0.172524,57963.0,57959.0,0.172535]
[1720813540580,0.00286353,57962.0,57959.0,0.172535]
[1720813541191,0.172524,57963.0,57959.0,0.172535]
[1720813541399,0.172524,57963.0,57957.0,0.345079]
[1720813541400,0.345048,57963.0,57960.0,0.0002]
[1720813541837,0.172526,57962.0,57959.0,0.0002]
[1720813542258,0.172524,57963.0,57959.0,0.182535]
[1720813542473,0.36310374,57965.0,57959.0,0.008]
[1720813542662,0.36310374,57965.0,57960.0,0.181531]
[1720813542663,0.00286353,57962.0,57960.0,0.181531]
[1720813542903,0.00286353,57962.0,57960.0,0.009]
[1720813543117,0.00286353,57962.0,57959.0,0.008]
[1720813543118,0.172529,57961.0,57959.0,0.008]